Workbook

Sheet Bankroll
C1: OBIETTIVO MENSILE | J1: OBIETTIVO GIORNALIERO
D2: Cassa Iniziale | F2: 150 | S2: Win
S3: Lose
B4: ID | C4: Bankroll | D4: Obiettivo | E4: Obiettivo | F4: Cassa Max | G4: Max Perdita | H4: Win/Lose | J4: Step | K4: Obiettivo | L4: % | M4: Ob. Vincita | N4: Puntata | O4: Quota | P4: Win/Lose | Q4: Risultato
B5: 1 | C5: =+F2 -> 150 | D5: 0.1 | E5: =+D5*C5 -> 15 | F5: =+D5*C5+C5 -> 165 | G5: =+C5*27% -> 40.5 | H5: Win | J5: 1 | K5: =IF($J$5="","",VLOOKUP($J$5,$B$5:H36,4)) -> 15 | L5: =IF($J$5="","",VLOOKUP($J$5,$B$5:H36,3)) -> 0.1 | M5: =+IF(J5="","",+K5*L5) -> 1.5 | Q5: =IF(P5="WIN",+(O5*N5)-N5,IF(P5="LOSE",-N5,"")) -> 
B6: 2 | C6: =IF(H5="WIN",F5,IF(H5="Lose",C5-G5,"")) -> 165 | D6: =+IF(H5="","",IF(H5="WIN",+D5+0.01,D5-0.01)) -> 0.11 | E6: =+IF(H5="","",D6*C6) -> 18.15 | F6: =+IF(H5="","",+D6*C6+C6) -> 183.15 | G6: =IF(H5="","",+C6*27%) -> 44.55 | J6: 2 | K6: =+IF(Q5="","",+K5-Q5) ->  | L6: =IF($J$5="","",VLOOKUP($J$5,$B$5:H37,3)) -> 0.1 | M6: =IF(Q5="","",+K6*L6) ->  | Q6: =IF(P6="WIN",+(O6*N6)-N6,IF(P6="LOSE",-N6,"0")) -> 0
B7: 3 | C7: =IF(H6="WIN",F6,IF(H6="Lose",C6-G6,"")) ->  | D7: =+IF(H6="","",IF(H6="WIN",+D6+0.01,D6-0.01)) ->  | E7: =+IF(H6="","",D7*C7) ->  | F7: =+IF(H6="","",+D7*C7+C7) ->  | G7: =IF(H6="","",+C7*27%) ->  | J7: 3 | K7: =+IF(Q6="0","",+K6-Q6) ->  | L7: =IF($J$5="","",VLOOKUP($J$5,$B$5:H38,3)) -> 0.1 | M7: =IF(Q6="0","",+K7*L7) ->  | Q7: =IF(P7="WIN",+(O7*N7)-N7,IF(P7="LOSE",-N7,"0")) -> 0
B8: 4 | J8: 4 | K8: =+IF(Q7="0","",+K7-Q7) ->  | L8: =IF($J$5="","",VLOOKUP($J$5,$B$5:H39,3)) -> 0.1 | M8: =IF(Q7="0","",+K8*L8) ->  | Q8: 0
B9: 5 | J9: 5 | L9: =IF($J$5="","",VLOOKUP($J$5,$B$5:H40,3)) -> 0.1 | Q9: 0
B10: 6 | J10: 6 | L10: =IF($J$5="","",VLOOKUP($J$5,$B$5:H41,3)) -> 0.1 | Q10: 0
B11: 7 | J11: 7 | L11: =IF($J$5="","",VLOOKUP($J$5,$B$5:H42,3)) -> 0.1 | Q11: 0
B12: 8 | J12: 8 | L12: =IF($J$5="","",VLOOKUP($J$5,$B$5:H43,3)) -> 0.1 | Q12: 0
B13: 9 | J13: 9 | L13: =IF($J$5="","",VLOOKUP($J$5,$B$5:H44,3)) -> 0.1 | Q13: 0
B14: 10 | J14: 10 | L14: =IF($J$5="","",VLOOKUP($J$5,$B$5:H45,3)) -> 0.1 | Q14: 0
B15: 11 | J15: 11 | L15: =IF($J$5="","",VLOOKUP($J$5,$B$5:H46,3)) -> 0.1 | Q15: 0
B16: 12 | J16: Max Perdita | O16: Max Perdita attuale | Q16: Guadagno
B17: 13 | J17: =VLOOKUP($J$5,$B$5:H36,6) -> 40.5 | L17: Massima Perdita | O17: =+J17+Q17 ->  | Q17: =IF(Q5="","",+Q5+Q6+Q7+Q9+Q8+Q10+Q11+Q12+Q13+Q14+Q15) -> 
B18: 14
B19: 15
B20: 16
B21: 17 | L21: COME GESTIRE LA PUNTATA SINGOLA
B22: 18
B23: 19 | L23: Cassa | N23: Quota | P23: Puntata
B24: 20
B25: 21 | L25: 100 | N25: 3 | P25: =+(100/N25)/((15/L25)*100) -> 2.222222222
B26: 22
B27: 23 | L27: Cassa tra i 301 e 750 | P27: =+(100/N25)/((10/L25)*100) -> 3.333333333
B28: 24
B29: 25 | L29: Cassa oltre i 751 | P29: =+(100/N25)/((5/L25)*100) -> 6.666666667
B30: 26
B31: 27
B32: 28
B33: 29
B34: 30
B35: 31
B36: 32

Sheet Spiegazioni
A1: Gestione del bankroll La gestione del bankroll è divisa in tre fasi principali, nessuna è da sottovalutare, la prima è la giocata immediata, stiamo parlando della nostra puntata effettuata su una giocata, per questo dovete usare la tabella “ Come gestire la puntata singola “, come funziona, semplicemente dovete inserire la vostra cassa e la quota della giocata, le celle arancioni, il file calcola la puntata ideale in base al vostro portafoglio, le puntate che visualizzate sono tre, la prima è quella base per le casse inferiori ai 300, la seconda tra i 301 e 750 e la terza per casse già importanti che hanno più di 751. La puntata che vedete deve essere sempre giocata per difetto inferiore, esempio se avete una puntata di 4.86, la vostra puntata finale sarà di 4 e non 5, un euro è importante nella tua cassa. Passiamo alla prossima tabella ed è l’obiettivo mensile, questa è una tabella a lungo termine, la prima cosa che dovrai fare è inserire la cassa iniziale, questa non verrà più toccata fino alla fine degli step (32), dopo di che dovete solo inserire win o lose, tramite menù a tendina, per continuare il prossimo step, per passare lo step dovete raggiungere il vostro obiettivo o arrivare alla massima perdita, non andate mai oltre della massima perdita non è logico, consigliamo vivamente di fermarsi almeno un giorno prima di iniziare il secondo step, soprattutto se risulta perdente. Per ultimi una tabella con l’obiettivo giornaliero per aiutarvi, qua dovete selezionare lo step, inserire la giocata che eseguite, per cui puntata e quota e infine, sempre a menù a tendina, dichiarare se win o lose.
